Department Family,Entity,Date,Expense Type,Expense Area,Supplier,Transaction Number,Amount,VAT Registration Number
Department of Health,East Sussex Healthcare NHS Trust,06/12/2017,COMPUTER SOFTWARE,Integrated Care,PORTAKABIN LIMITED,0000371622,21728.01,
Department of Health,East Sussex Healthcare NHS Trust,06/12/2017,STOCK-ASCRIBE CONQUEST,Pharmacy Stock,BAXTER HEALTHCARE (BERKSHIRE)LTD,0001295127,29574.36,
Department of Health,East Sussex Healthcare NHS Trust,06/12/2017,NHS SUPPLY CHAIN CREDITORS,Cross Site,NHS SUPPLY CHAIN,0001447011,134364.74,
Department of Health,East Sussex Healthcare NHS Trust,06/12/2017,ELECTRICITY,Commercial,EDF ENERGY,0001449166,39923.28,
Department of Health,East Sussex Healthcare NHS Trust,06/12/2017,CONTRACT-SECURITY,Commercial,CORPS SECURITY,0001449845,26882.11,
Department of Health,East Sussex Healthcare NHS Trust,06/12/2017,CAPITAL EXPEND BUILDINGS,Other Central,MTX CONTRACTS LTD,0001450189,40500.00,
Department of Health,East Sussex Healthcare NHS Trust,06/12/2017,DATA LANDLINE RENTAL,Corporate Services,BRITISH TELECOMMUNICATIONS PLC,0001450487,140358.62,
Department of Health,East Sussex Healthcare NHS Trust,06/12/2017,CAPITAL EXPEND BUILDINGS,Other Central,BOOKER & BEST LIMITED,0001450540,41296.99,
Department of Health,East Sussex Healthcare NHS Trust,06/12/2017,CAPITAL EXPEND BUILDINGS,Other Central,PD HARRIS LTD ,0001450561,38400.00,
Department of Health,East Sussex Healthcare NHS Trust,06/12/2017,CAPITAL EXPEND BUILDINGS,Other Central,PD HARRIS LTD ,0001450562,37200.00,
Department of Health,East Sussex Healthcare NHS Trust,06/12/2017,CAPITAL EXPEND BUILDINGS,Other Central,PD HARRIS LTD ,0001450563,36000.00,
Department of Health,East Sussex Healthcare NHS Trust,06/12/2017,PROFESSIONAL FEES,Corporate Services,LIAISON FINANCIAL SERVICES LTD,0001451082,5803.26,
Department of Health,East Sussex Healthcare NHS Trust,06/12/2017,APPRENTICESHIP LEVY,Other Central,LIAISON FINANCIAL SERVICES LTD,0001451082,1069.00,
Department of Health,East Sussex Healthcare NHS Trust,06/12/2017,AGENCY DIRECT ENGAGEMENT,Other Central,LIAISON FINANCIAL SERVICES LTD,0001451082,77376.78,
Department of Health,East Sussex Healthcare NHS Trust,06/12/2017,GENERAL RATES,Commercial,EASTBOURNE BOROUGH COUNCIL,0001451083,105223.00,
Department of Health,East Sussex Healthcare NHS Trust,06/12/2017,GENERAL RATES,Commercial,HASTINGS BOROUGH COUNCIL,0001451086,80685.00,
Department of Health,East Sussex Healthcare NHS Trust,06/12/2017,PROVISIONS,Commercial,THE CUISINE CENTRE,0001918637,28790.60,
Department of Health,East Sussex Healthcare NHS Trust,06/12/2017,PROVISIONS,Commercial,THE CUISINE CENTRE,0001918721,27168.84,
Department of Health,East Sussex Healthcare NHS Trust,06/12/2017,MAINT-TOSHIBA,Integrated Care,TOSHIBA MEDICAL SYSTEMS LTD,0002192447,92256.00,
Department of Health,East Sussex Healthcare NHS Trust,06/12/2017,CAPITAL EXPEND PLANT&MACHINERY,Other Central,DESIGN SPECIFIC,0002192782,33600.00,
Department of Health,East Sussex Healthcare NHS Trust,06/12/2017,INTERVENTIONAL RADIOLOGY LEASE,Integrated Care,SIEMENS FINANCIAL SERVICES LTD,0002195160,30313.87,
Department of Health,East Sussex Healthcare NHS Trust,06/12/2017,CAPITAL EXPEND PLANT&MACHINERY,Other Central,CARL ZEISS LTD,0002195361,39518.90,
Department of Health,East Sussex Healthcare NHS Trust,06/12/2017,CAPITAL EXPEND BUILDINGS,Other Central,CARL ZEISS LTD,0002195941,2513.39,
Department of Health,East Sussex Healthcare NHS Trust,06/12/2017,CAPITAL EXPEND PLANT&MACHINERY,Other Central,CARL ZEISS LTD,0002195941,23781.61,
Department of Health,East Sussex Healthcare NHS Trust,06/12/2017,COMPUTER SOFTWARE,Corporate Services,THE PHOENIX PARTNERSHIP (TPP),0002196535,60181.65,
Department of Health,East Sussex Healthcare NHS Trust,06/12/2017,COMPUTER MAINTENANCE-HARDWARE,Corporate Services,THE PHOENIX PARTNERSHIP (TPP),0002196535,77.90,
Department of Health,East Sussex Healthcare NHS Trust,06/12/2017,PROFESSIONAL FEES,Corporate Services,KAINOS SOFTWARE LTD,0002197238,181152.00,
Department of Health,East Sussex Healthcare NHS Trust,06/12/2017,COMPUTER SOFTWARE,Corporate Services,SECTOR IT SOLUTIONS LTD,0002198332,1584.00,
Department of Health,East Sussex Healthcare NHS Trust,06/12/2017,COMPUTER MAINT - SOFTWARE,Corporate Services,SECTOR IT SOLUTIONS LTD,0002198332,86756.40,
Department of Health,East Sussex Healthcare NHS Trust,06/12/2017,COMPUTER SOFTWARE,Corporate Services,THE PHOENIX PARTNERSHIP (TPP),0002198604,54442.39,
Department of Health,East Sussex Healthcare NHS Trust,06/12/2017,PACEMAKERS,Integrated Care,MEDTRONIC LTD,0002199828,99283.20,
Department of Health,East Sussex Healthcare NHS Trust,06/12/2017,IMPLANTABLE DEFIBRILLATOR,Integrated Care,MEDTRONIC LTD,0002199828,78561.60,
Department of Health,East Sussex Healthcare NHS Trust,06/12/2017,COMPUTER MAINTENANCE-HARDWARE,Corporate Services,ALLSCRIPTS HEALTHCARE (IT) UK LTD,0002282286,119528.71,
Department of Health,East Sussex Healthcare NHS Trust,06/12/2017,STOCK-ASCRIBE CONQUEST,Pharmacy Stock,BAYER PLC,0002317524,100684.80,
Department of Health,East Sussex Healthcare NHS Trust,06/12/2017,STOCK-ASCRIBE CONQUEST,Pharmacy Stock,ROCHE PRODUCTS LTD,0012000137,25843.07,
Department of Health,East Sussex Healthcare NHS Trust,06/12/2017,STOCK-ASCRIBE EDGH,Pharmacy Stock,ROCHE PRODUCTS LTD,0013068164,28290.24,
Department of Health,East Sussex Healthcare NHS Trust,06/12/2017,AGENCY OCC THERAPY STAFF,Integrated Care,THE PLACEMENT GROUP,0020082327,10366.38,
Department of Health,East Sussex Healthcare NHS Trust,06/12/2017,AGENCY PHYSIOTHERAPY STAFF,Integrated Care,THE PLACEMENT GROUP,0020082327,6277.50,
Department of Health,East Sussex Healthcare NHS Trust,06/12/2017,AGENCY PHYSIOTHERAPY STAFF,Integrated Care,THE PLACEMENT GROUP,0020082327,13884.36,
Department of Health,East Sussex Healthcare NHS Trust,06/12/2017,AGENCY PHYSIOTHERAPY STAFF,Integrated Care,THE PLACEMENT GROUP,0020082327,3766.50,
Department of Health,East Sussex Healthcare NHS Trust,06/12/2017,RADIOGRAPHER BAND 7,Integrated Care,THE PLACEMENT GROUP,0020082327,13503.90,
Department of Health,East Sussex Healthcare NHS Trust,06/12/2017,AGENCY CONSULTANT,Integrated Care,PATHOLOGY GROUP,0020083502,53869.50,
Department of Health,East Sussex Healthcare NHS Trust,11/12/2017,PURCHASING CARDS,Cross Site,LLOYDS TSB CORPORATE MARKETS,0001451087,41304.00,
Department of Health,East Sussex Healthcare NHS Trust,13/12/2017,SA-FPC REF FP10S,Cross Site,NHS BUSINESS SERVICES AUTHORITY,0000146029,57034.86,
Department of Health,East Sussex Healthcare NHS Trust,13/12/2017,STOCK-ASCRIBE CONQUEST,Pharmacy Stock,NOVARTIS PHARMACEUTICALS UK LTD,0001294799,37405.08,
Department of Health,East Sussex Healthcare NHS Trust,13/12/2017,NHS SUPPLY CHAIN CREDITORS,Cross Site,NHS SUPPLY CHAIN,0001447138,179734.23,
Department of Health,East Sussex Healthcare NHS Trust,13/12/2017,ELECTRICITY,Commercial,EDF ENERGY,0001449802,75669.75,
Department of Health,East Sussex Healthcare NHS Trust,13/12/2017,CAPITAL EXPEND BUILDINGS,Other Central,MTX CONTRACTS LTD,0001450190,40999.99,
Department of Health,East Sussex Healthcare NHS Trust,13/12/2017,CAPITAL EXPEND BUILDINGS,Other Central,BOOKER & BEST LIMITED,0001450538,30000.00,
Department of Health,East Sussex Healthcare NHS Trust,13/12/2017,CAPITAL EXPEND BUILDINGS,Other Central,PD HARRIS LTD ,0001450558,48213.05,
Department of Health,East Sussex Healthcare NHS Trust,13/12/2017,CAPITAL EXPEND BUILDINGS,Other Central,PD HARRIS LTD ,0001450559,40800.00,
Department of Health,East Sussex Healthcare NHS Trust,13/12/2017,CAPITAL EXPEND BUILDINGS,Other Central,PD HARRIS LTD ,0001450560,39600.00,
Department of Health,East Sussex Healthcare NHS Trust,13/12/2017,PROFESSIONAL FEES,Corporate Services,LIAISON FINANCIAL SERVICES LTD,0001451090,5296.39,
Department of Health,East Sussex Healthcare NHS Trust,13/12/2017,AGENCY DIRECT ENGAGEMENT,Other Central,LIAISON FINANCIAL SERVICES LTD,0001451090,70618.59,
Department of Health,East Sussex Healthcare NHS Trust,13/12/2017,PROVISIONS,Commercial,THE CUISINE CENTRE,0001918593,34046.85,
Department of Health,East Sussex Healthcare NHS Trust,13/12/2017,PROVISIONS,Commercial,THE CUISINE CENTRE,0001918594,33652.04,
Department of Health,East Sussex Healthcare NHS Trust,13/12/2017,COMPUTER SOFTWARE,Corporate Services,SOFTCAT PLC,0002194502,113930.40,
Department of Health,East Sussex Healthcare NHS Trust,13/12/2017,PACEMAKERS,Integrated Care,MEDTRONIC LTD,0002199820,35812.80,
Department of Health,East Sussex Healthcare NHS Trust,13/12/2017,IMPLANTABLE DEFIBRILLATOR,Integrated Care,MEDTRONIC LTD,0002199820,144218.40,
Department of Health,East Sussex Healthcare NHS Trust,13/12/2017,CAPITAL EXPEND PLANT&MACHINERY,Other Central,CAREFUSION UK 306 LTD,0002276779,90024.00,
Department of Health,East Sussex Healthcare NHS Trust,13/12/2017,COMPUTER MAINT - SOFTWARE,Corporate Services,SOFTCAT PLC,0002278345,64042.00,
Department of Health,East Sussex Healthcare NHS Trust,13/12/2017,PACEMAKERS,Integrated Care,BOSTON SCIENTIFIC LTD,0002280739,54975.60,
Department of Health,East Sussex Healthcare NHS Trust,13/12/2017,PROFESSIONAL FEES,Corporate Services,REED BUSINESS INFORMATION,0002281607,28053.90,
Department of Health,East Sussex Healthcare NHS Trust,13/12/2017,CAPITAL EXPEND FURN&FITTINGS,Other Central,ANETIC AID LTD,0002281848,94272.79,
Department of Health,East Sussex Healthcare NHS Trust,13/12/2017,STOCK-ASCRIBE CONQUEST,Pharmacy Stock,BAYER PLC,0002318159,100684.80,
Department of Health,East Sussex Healthcare NHS Trust,13/12/2017,STOCK-ASCRIBE EDGH,Pharmacy Stock,CELGENE LTD,0013065674,28702.80,
Department of Health,East Sussex Healthcare NHS Trust,13/12/2017,AGENCY OCC THERAPY STAFF,Integrated Care,THE PLACEMENT GROUP,0020083497,3800.52,
Department of Health,East Sussex Healthcare NHS Trust,13/12/2017,AGENCY OCC THERAPY STAFF,Integrated Care,THE PLACEMENT GROUP,0020083497,3337.85,
Department of Health,East Sussex Healthcare NHS Trust,13/12/2017,AGENCY PHYSIOTHERAPY STAFF,Integrated Care,THE PLACEMENT GROUP,0020083497,2404.08,
Department of Health,East Sussex Healthcare NHS Trust,13/12/2017,AGENCY PHYSIOTHERAPY STAFF,Integrated Care,THE PLACEMENT GROUP,0020083497,1255.50,
Department of Health,East Sussex Healthcare NHS Trust,13/12/2017,AGENCY SPEECH THERAPIST,Integrated Care,THE PLACEMENT GROUP,0020083497,12327.96,
Department of Health,East Sussex Healthcare NHS Trust,13/12/2017,AGENCY PHYSIOTHERAPY STAFF,Integrated Care,THE PLACEMENT GROUP,0020083497,4017.60,
Department of Health,East Sussex Healthcare NHS Trust,13/12/2017,AGENCY RADIOGRAPHY STAFF,Integrated Care,THE PLACEMENT GROUP,0020083497,10221.39,
Department of Health,East Sussex Healthcare NHS Trust,13/12/2017,H/CARE PURCH MEDICA,Integrated Care,MEDICA REPORTING LTD,0021001262,45868.50,
Department of Health,East Sussex Healthcare NHS Trust,15/12/2017,NHSLA-CNST INSURANCE,Corporate Services,NHS RESOLUTION,0001451092,1461490.60,
Department of Health,East Sussex Healthcare NHS Trust,15/12/2017,OTHER INSURANCE NOT PROP/VHCL,Corporate Services,NHS RESOLUTION,0001451092,33164.10,
Department of Health,East Sussex Healthcare NHS Trust,15/12/2017,PROFESSIONAL FEES,Corporate Services,LIAISON FINANCIAL SERVICES LTD,0001451094,7093.79,
Department of Health,East Sussex Healthcare NHS Trust,15/12/2017,AGENCY DIRECT ENGAGEMENT,Other Central,LIAISON FINANCIAL SERVICES LTD,0001451094,94583.85,
Department of Health,East Sussex Healthcare NHS Trust,20/12/2017,SLA WITH SUSSEX PARTNERSHIP,Corporate Services,SUSSEX PARTNERSHIP NHS FOUNDATION TRUST,0000147495,185518.00,
Department of Health,East Sussex Healthcare NHS Trust,20/12/2017,SLA WITH SUSSEX PARTNERSHIP,Corporate Services,SUSSEX PARTNERSHIP NHS FOUNDATION TRUST,0000149147,-51065.00,
Department of Health,East Sussex Healthcare NHS Trust,20/12/2017,STOCK-ASCRIBE CONQUEST,Pharmacy Stock,NOVARTIS PHARMACEUTICALS UK LTD,0001295050,37396.80,
Department of Health,East Sussex Healthcare NHS Trust,20/12/2017,STOCK-ASCRIBE CONQUEST,Pharmacy Stock,NOVARTIS PHARMACEUTICALS UK LTD,0001296404,40106.76,
Department of Health,East Sussex Healthcare NHS Trust,20/12/2017,NHS SUPPLY CHAIN CREDITORS,Cross Site,NHS SUPPLY CHAIN,0001447250,163525.92,
Department of Health,East Sussex Healthcare NHS Trust,20/12/2017,CAPITAL EXPEND BUILDINGS,Other Central,MTX CONTRACTS LTD,0001450191,41500.00,
Department of Health,East Sussex Healthcare NHS Trust,20/12/2017,CAPITAL EXPEND BUILDINGS,Other Central,MTX CONTRACTS LTD,0001450192,42500.00,
Department of Health,East Sussex Healthcare NHS Trust,20/12/2017,CAPITAL EXPEND BUILDINGS,Other Central,MTX CONTRACTS LTD,0001450193,43000.01,
Department of Health,East Sussex Healthcare NHS Trust,20/12/2017,CAPITAL EXPEND BUILDINGS,Other Central,MTX CONTRACTS LTD,0001450194,46650.83,
Department of Health,East Sussex Healthcare NHS Trust,20/12/2017,CAPITAL EXPEND BUILDINGS,Other Central,BOOKER & BEST LIMITED,0001450539,30000.00,
Department of Health,East Sussex Healthcare NHS Trust,20/12/2017,GAS,Commercial,CORONA ENERGY,0001450639,46369.43,
Department of Health,East Sussex Healthcare NHS Trust,20/12/2017,GAS,Commercial,CORONA ENERGY,0001450640,70741.84,
Department of Health,East Sussex Healthcare NHS Trust,20/12/2017,CAPITAL EXPEND BUILDINGS,Other Central,PD HARRIS LTD ,0001450671,27619.82,
Department of Health,East Sussex Healthcare NHS Trust,20/12/2017,CAPITAL EXPEND BUILDINGS,Other Central,PD HARRIS LTD ,0001451009,36000.00,
Department of Health,East Sussex Healthcare NHS Trust,20/12/2017,CAPITAL EXPEND I.T.,Other Central,SOFTCAT PLC,0002198607,52219.20,
Department of Health,East Sussex Healthcare NHS Trust,20/12/2017,PACEMAKERS,Integrated Care,BOSTON SCIENTIFIC LTD,0002280738,40800.00,
Department of Health,East Sussex Healthcare NHS Trust,20/12/2017,CAPITAL EXPEND FURN&FITTINGS,Other Central,ANETIC AID LTD,0002282313,26223.05,
Department of Health,East Sussex Healthcare NHS Trust,20/12/2017,PROFESSIONAL FEES,Corporate Services,SCRIBETECH,0002283292,23852.80,
Department of Health,East Sussex Healthcare NHS Trust,20/12/2017,AGENCY CONSULTANT,Integrated Care,PATHOLOGY GROUP,0020084465,71560.13,
Department of Health,East Sussex Healthcare NHS Trust,20/12/2017,H/CARE PURCH MEDICA,Integrated Care,MEDICA REPORTING LTD,0021001261,63735.00,
